fUSD/lending_fUSD_20260106
["ID","MTS","AMOUNT","RATE_DAILY","PERIOD"]
[400513532,1767687046042,-545.59,0.00032978,2]
[400513533,1767687046052,-300.0,0.00032978,2]
[400513534,1767687046061,-500.0,0.00032978,16]
[400513535,1767687046071,-500.0,0.00032978,5]
[400513536,1767687046081,-500.0,0.00032978,14]
[400513537,1767687046090,-500.0,0.00032978,3]
[400513538,1767687046099,-500.0,0.00032978,45]
[400513539,1767687046109,-11380.3187891,0.00032979,3]
[400513540,1767687046119,-16772.9041097,0.00032979,3]
[400513541,1767687046129,-11380.3187891,0.00032979,3]
[400513542,1767687046140,-8386.45205483,0.00032979,3]
[400513543,1767687046150,-500.0,0.0003298,2]
[400513544,1767687046159,-33117.19889172,0.0003298,3]
[400513545,1767687064176,289.56168023,0.00027057,120]
[400513546,1767687064839,193.0,0.00027057,120]
[400513547,1767687064932,193.0,0.00026097,120]
[400513548,1767687065036,193.0,0.00028472,120]
[400513549,1767687065143,197.21778954,0.00028472,120]
[400513563,1767687846792,-164.67,0.00018,7]
[400513564,1767687846816,-313.0,0.000189,2]
[400513565,1767687846839,-151.0,0.00020719,2]
[400513566,1767687846861,-151.0,0.00020719,2]
[400513567,1767687846883,-151.0,0.00021077,2]
[400513568,1767687846904,-151.0,0.00021077,2]
[400513569,1767687846925,-151.0,0.00021167,2]
[400513570,1767687846945,-151.0,0.00021167,2]
[400513571,1767687846966,-616.33,0.00024597,2]
[400513572,1767687911972,-906.95958471,0.00018,2]
[400513573,1767687928532,38970.33948916,0.00016,2]
[400513574,1767687943038,-1223.157,0.00016,2]
[400513575,1767687945700,-259.0,0.00016,2]
[400513576,1767687947916,-250.0,0.00016,2]
[400513577,1767687949991,-291.0,0.00016,2]
[400513578,1767687953846,-1200.0,0.00016,2]
[400513579,1767687955453,-776.843,0.00016,2]
[400513580,1767687959191,-164.67,0.00016,2]
[400513581,1767687962779,8476.25584019,0.00011,2]
[400513582,1767688022974,4791.21404805,0.00015,2]
[400513583,1767688028976,205.0,9.8e-05,2]
[400513584,1767688032556,1106.40561757,0.0001305,2]
[400513585,1767688063345,421.12449419,0.00013,2]
[400513586,1767688063383,3999.08335213,0.00013,2]
[400513587,1767688067742,5938.21971219,0.00012,2]
[400513588,1767688086479,306.9692781,0.000125,2]
[400513589,1767688104912,2731.32216801,0.0001,2]
[400513590,1767688105574,-151.22225532,0.00015,2]
[400513592,1767688109777,-302.0,0.00015,2]
[400513593,1767688113889,-302.0,0.00015,2]
[400513595,1767688114953,493.22531574,0.0001,2]
[400513597,1767688151145,-300.0,0.00014999,2]
[400513598,1767688151166,-4498.11309809,0.00015,2]
[400513599,1767688174075,-5354.279294,0.00015,2]
[400513600,1767688190599,-4861.56696855,0.00015,2]
[400513601,1767688190622,-188.62883324,0.00015807,2]
[400513602,1767688190642,-300.0,0.00015998,2]
[400513603,1767688190663,-250.0,0.00016,2]
[400513604,1767688190684,-1224.80419821,0.00016,2]
[400513608,1767688231669,-2191.35822892,0.000159,2]
[400513611,1767688231681,-999.0,0.000159,2]
[400513614,1767688231793,-3622.91477108,0.000159,2]
[400513615,1767688231802,-300.0,0.00015999,2]
[400513616,1767688231811,-1200.0,0.00015999,2]
[400513617,1767688231821,-300.0,0.00015999,2]
[400513618,1767688231830,-284.0,0.00015999,2]
[400513619,1767688231839,-500.0,0.00015999,2]
[400513620,1767688231849,-500.0,0.00015999,2]
[400513621,1767688231858,-500.0,0.00015999,2]
[400513622,1767688231867,-500.0,0.00015999,2]
[400513623,1767688231877,-500.0,0.00015999,2]
[400513624,1767688231887,-500.0,0.00015999,2]
[400513625,1767688231896,-500.0,0.00015999,2]
[400513626,1767688231907,-500.0,0.00015999,2]
[400513627,1767688231916,-500.0,0.00015999,2]
[400513628,1767688231926,-500.0,0.00015999,2]
[400513629,1767688231936,-500.0,0.00015999,2]
[400513630,1767688231946,-500.0,0.00015999,2]
[400513631,1767688231957,-500.0,0.00015999,2]
[400513632,1767688231968,-500.0,0.00015999,2]
[400513633,1767688231978,-500.0,0.00015999,2]
[400513634,1767688231989,-500.0,0.00015999,2]
[400513635,1767688232000,-500.0,0.00015999,2]
[400513636,1767688232010,-500.0,0.00015999,2]
[400513638,1767688232020,-500.0,0.00015999,2]
[400513640,1767688232029,-500.0,0.00015999,2]
[400513642,1767688232038,-500.0,0.00015999,2]
[400513644,1767688232047,-324.10779185,0.00015999,2]
[400513646,1767688232056,-500.0,0.00015999,2]
[400513649,1767688232065,-250.0,0.00016,2]
[400513651,1767688232074,-10279.9796874,0.00016,2]
[400513654,1767688232086,-418.26636555,0.00016,2]
[400513657,1767688232099,-1388.91954942,0.00016,2]
[400513659,1767688232111,-2345.02498503,0.00016,2]
[400513661,1767688232123,-395.00000005,0.00016,2]
[400513662,1767688232134,-654.07912437,0.00016,2]
[400513664,1767688232146,-7244.12574037,0.00016,2]
[400513665,1767688232181,398.42,0.00013699,2]
[400513685,1767688237749,-2506.04343299,0.00016,2]
[400513686,1767688237761,-2032.33314763,0.00016,2]
[400513687,1767688239215,-825.89185212,0.00016,2]
[400513688,1767688239241,-870.89229632,0.00016,2]
[400513689,1767688239268,-82546.0582658,0.00016,2]
[400513690,1767688239277,-5000.00059082,0.000162,5]
[400513691,1767688239287,-151.0,0.00016444,2]
[400513692,1767688239297,-151.0,0.00016444,2]
[400513693,1767688239308,-151.0,0.00016494,2]
[400513694,1767688239321,-151.0,0.00016494,2]
[400513695,1767688239331,-359.46594151,0.000166,2]
[400513696,1767688239342,-510.0,0.00017119,2]
[400513697,1767688239351,-420.0,0.00017492,2]
[400513698,1767688239361,-1680.0,0.0001758,2]
[400513699,1767688239371,-2500.0,0.00017599,2]
[400513700,1767688239381,-300.0,0.00017599,2]
[400513701,1767688239391,-250.0,0.00017599,2]
[400513702,1767688239400,-193.0,0.00017599,2]
[400513703,1767688239410,-195.0,0.00017599,2]
[400513705,1767688239419,-300.0,0.00017599,2]
[400513707,1767688239428,-250.0,0.00017599,2]
[400513709,1767688239438,-600.0,0.000176,2]
[400513711,1767688239447,-92726.5416851,0.000179,2]
[400513712,1767688239457,-259.0,0.000179,2]
[400513714,1767688239466,-1312.39076499,0.000179,2]
[400513717,1767688239476,-188.92756037,0.000179,2]
[400513718,1767688239485,-693.25471248,0.000179,2]
[400513721,1767688239495,-500.0,0.000179,2]
[400513723,1767688239506,-500.0,0.00017973,2]
[400513724,1767688239515,-464.6041227,0.00017973,2]
[400513726,1767688239525,-640.17689625,0.00017973,2]
[400513728,1767688239535,-150.0,0.00017973,2]
[400513730,1767688239544,-299.99271757,0.0001799,2]
[400513733,1767688239554,-299.99271757,0.0001799,2]
[400513734,1767688239563,-299.99271757,0.0001799,2]
[400513737,1767688239573,-151.0,0.00017997,2]
[400513739,1767688239583,-1467.66845712,0.00017999,5]
[400513741,1767688239593,-323.23631266,0.00017999,2]
[400513743,1767688239603,-157.16106928,0.00017999,2]
[400513746,1767688239620,-178.98383188,0.00017999,2]
[400513748,1767688239631,-2924808.2641198,0.00018,2]
[400513750,1767688239643,-1931149.6542908,0.00018,2]
[400513752,1767688239655,-588.0,0.00018,2]
[400513755,1767688239667,-543.0149318,0.00018,2]
[400513757,1767688239679,-2006.39999792,0.00018,2]
[400513774,1767688239798,-8778.39217555,0.00018,2]
[400513776,1767688239810,-8947.21879473,0.00018,2]
[400513782,1767688239834,-8943.78386462,0.00018,2]
[400513785,1767688239845,-9077.54866152,0.00018,2]
[400513788,1767688239857,-8943.84023489,0.00018,2]
[400513819,1767688240034,-373237.26526274,0.00018,2]
[400513823,1767688240046,-56651.47195505,0.00018,2]
[400513826,1767688240056,-3864.46995742,0.00018,2]
[400513842,1767688240139,-8894.3368452,0.00018,2]
[400513845,1767688240151,-396.46246425,0.00018,2]
[400513862,1767688240250,-642.07688191,0.00018,2]
[400513864,1767688240261,-3561.99998,0.00018,2]
[400513878,1767688240395,-151.00000017,0.00018,2]
[400514024,1767688244081,-151.0,0.00016792,2]
[400514025,1767688244091,-151.0,0.00016792,2]
[400514026,1767688244100,-133.582103,0.000179,2]
[400514027,1767688245395,-209.56326882,0.000179,2]
[400514028,1767688245406,-394.17199481,0.000179,2]
[400514029,1767688245418,-419.70847314,0.000179,2]
[400514030,1767688245428,-508.26638733,0.00018,2]
[400514046,1767688245699,-8269.31704729,0.00018,2]
[400514047,1767688245711,-31900.83681111,0.00018,2]
[400514048,1767688245818,-137264.04407038,0.00018,2]
[400514049,1767688245832,-569.83959325,0.00018,2]
[400514050,1767688245846,-2049.43256005,0.00018,2]
[400514051,1767688245861,-6394.36509592,0.00018,2]
[400514052,1767688245875,-4277.3454413,0.00018,2]
[400514053,1767688245889,-5501.04924969,0.00018,2]
[400514054,1767688245903,-759.48108643,0.00018,2]
[400514055,1767688245916,-349.87046341,0.00018,2]
[400514056,1767688245929,-6556.42355414,0.00018,2]
[400514057,1767688245940,-866.3099,0.00018,2]
[400514058,1767688245952,-808.13842488,0.00018,2]
[400514059,1767688245970,-472.28752402,0.00018,2]
[400514060,1767688245983,-365.6300001,0.00018,2]
[400514061,1767688246053,-2811.35015583,0.00018,2]
[400514064,1767688294156,-500.0,0.00015999,2]
[400514065,1767688294184,-500.0,0.00015999,2]
[400514066,1767688294212,-500.0,0.00015999,2]
[400514067,1767688294240,-250.0,0.00015999,2]
[400514068,1767688294267,-500.0,0.00015999,2]
[400514069,1767688294289,-300.0,0.00016282,2]
[400514070,1767688294312,-300.0,0.00016564,2]
[400514071,1767688294337,-195.0,0.00016564,2]
[400514072,1767688294363,-151.0,0.00016871,2]
[400514073,1767688294386,-151.0,0.00016871,2]
[400514074,1767688294410,-300.0,0.00016939,2]
[400514075,1767688294435,-377.03825781,0.00016939,2]
[400514076,1767688294459,-151.0,0.00017129,2]
[400514077,1767688294482,-151.0,0.00017129,2]
[400514078,1767688294505,-300.0,0.00017406,2]
[400514079,1767688294530,-300.0,0.00017406,2]
[400514080,1767688294553,-300.0,0.00017599,2]
[400514081,1767688294577,-195.0,0.00017599,2]
[400514082,1767688294600,-776.7334425,0.00017599,2]
[400514083,1767688294624,-300.0,0.00017599,2]
[400514084,1767688294647,-1198.862,0.0001764,2]
[400514085,1767688294671,-5522.78638686,0.000179,2]
[400514086,1767688294695,-24762.34747307,0.000179,2]
[400514087,1767688294717,-1115.60769283,0.00017999,5]
[400514088,1767688294740,-500.0,0.00017999,2]
[400514089,1767688294763,-405.27970885,0.00017999,2]
[400514090,1767688294788,-1275739.12667611,0.00018,2]
[400514091,1767688294824,-164.67,0.00018,7]
[400514092,1767688294852,-306.7,0.00018107,2]
[400514093,1767688294875,-235.0,0.00018319,2]
[400514094,1767688294898,-151.51,0.000188,2]
[400514095,1767688294921,-151.51,0.000188,2]
[400514096,1767688294944,-151.51,0.000188,2]
[400514097,1767688294969,-151.51,0.000188,2]
[400514098,1767688294993,-151.51,0.000188,2]
[400514099,1767688295017,-151.51,0.000188,2]
[400514100,1767688295041,-151.51,0.000188,2]
[400514101,1767688295067,-151.51,0.000188,2]
[400514102,1767688295096,-151.51,0.000188,2]
[400514103,1767688295119,-151.51,0.000188,2]
[400514104,1767688295143,-151.51,0.000188,2]
[400514105,1767688295167,-151.51,0.000188,2]
[400514106,1767688295191,-151.51,0.000188,2]
[400514107,1767688295214,-151.51,0.000188,2]
[400514108,1767688295243,-151.51,0.000188,2]
[400514109,1767688295268,-151.51,0.000188,2]
[400514110,1767688295293,-151.51,0.000188,2]
[400514111,1767688295318,-151.51,0.000188,2]
[400514112,1767688295345,-151.51,0.000188,2]
[400514113,1767688295370,-151.51,0.000188,2]
[400514114,1767688295395,-151.51,0.000188,2]
[400514115,1767688295420,-151.51,0.000188,2]
[400514116,1767688295445,-151.51,0.000188,2]
[400514117,1767688295474,-151.51,0.000188,2]
[400514118,1767688295499,-151.51,0.000188,2]
[400514119,1767688295525,-151.51,0.000188,2]
[400514120,1767688295558,-151.51,0.000188,2]
[400514121,1767688295584,-151.51,0.000188,2]
[400514122,1767688295609,-151.51,0.000188,2]
[400514123,1767688295634,-151.51,0.000188,2]
[400514124,1767688295659,-151.51,0.000188,2]
[400514125,1767688295684,-151.51,0.000188,2]
[400514126,1767688295710,-151.51,0.000188,2]
[400514127,1767688295735,-151.51,0.000188,2]
[400514128,1767688295758,-151.51,0.000188,2]
[400514129,1767688295782,-151.51,0.000188,2]
[400514130,1767688295805,-151.51,0.000188,2]
[400514131,1767688295829,-166.66,0.00018866,2]
[400514132,1767688295852,-167.49433605,0.000189,2]
[400514133,1767688296105,-357.58810833,0.0001901,7]
[400514134,1767688296130,-580.0,0.00019125,2]
[400514135,1767688296155,-166.66,0.00019263,2]
[400514136,1767688296179,-2351.0,0.00019317,2]
[400514137,1767688296203,-306.7,0.00019459,2]
[400514138,1767688296227,-166.66,0.0001966,2]
[400514139,1767688296251,-24762.34747303,0.00019789,2]
[400514140,1767688296273,-4913.25056532,0.000199,3]
[400514141,1767688296299,-2212.14447453,0.0001995,15]
[400514142,1767688296323,-505.58795445,0.00019973,2]
[400514143,1767688296349,-492.98752545,0.00019973,2]
[400514144,1767688296373,-500.0,0.00019973,2]
[400514145,1767688296399,-504.3199228,0.00019973,2]
[400514146,1767688296423,-150.54524676,0.00019973,2]
[400514147,1767688296446,-10897.42382596,0.0002,2]
[400514148,1767688296469,-1530.63340614,0.0002,2]
[400514149,1767688296492,-25550.35868933,0.0002,2]
[400514150,1767688296515,-758.83798412,0.0002,5]
[400514151,1767688296538,-3088.33,0.0002,2]
[400514152,1767688296562,-3950.0,0.0002,2]
[400514153,1767688296584,-73858.49877962,0.0002,10]
[400514154,1767688296607,-7276.81753015,0.0002,2]
[400514155,1767688296631,-1292.31947838,0.0002,2]
[400514156,1767688296653,-1043.17239724,0.0002,2]
[400514157,1767688296677,-2858.721728,0.0002,2]
[400514158,1767688296700,-12901.87667595,0.0002,2]
[400514159,1767688296730,-1052.45242198,0.0002,2]
[400514160,1767688296761,-150.0,0.0002,2]
[400514161,1767688296786,-150.0,0.0002,2]
[400514162,1767688296811,-195.08058581,0.0002,2]
[400514163,1767688296835,-8720.0,0.0002001,2]
[400514164,1767688296860,-343.14537175,0.00020041,2]
[400514165,1767688296886,-166.66,0.00020057,2]
[400514166,1767688296911,-1005.07908299,0.000201,2]
[400514167,1767688296935,-398.42,0.00020187,2]
[400514168,1767688296961,-166.66,0.00020455,2]
[400514169,1767688296988,-1000.0,0.00020521,2]
[400514170,1767688297012,-193.55,0.00020548,2]
[400514171,1767688297036,-21481.14,0.00020548,2]
[400514172,1767688297060,-22616.80743394,0.000207,2]
[400514173,1767688297084,-306.7,0.00020811,2]
[400514174,1767688297108,-166.66,0.00020852,2]
[400514175,1767688297132,-51873.58313577,0.000209,30]
[400514176,1767688297159,-500.0,0.0002098,3]
[400514177,1767688297182,-226822.03547001,0.0002099,2]
[400514178,1767688297207,-1191.16510258,0.00021,2]
[400514179,1767688297233,-196.61170439,0.00021,2]
[400514180,1767688297257,-160.0,0.00021,7]
[400514181,1767688297282,-506.65163513,0.00021068,2]
[400514182,1767688297306,-12491.06,0.00021068,2]
[400514183,1767688297334,-3292.0,0.00021226,2]
[400514184,1767688297358,-57438.65090699,0.000215,2]
[400514185,1767688297386,-221.7670119,0.000215,2]
[400514186,1767688297411,-151.0,0.000215,2]
[400514187,1767688297436,-151.0,0.000215,2]
[400514188,1767688297460,-151.0,0.000215,2]
[400514189,1767688297486,-151.0,0.000215,2]
[400514190,1767688297511,-24762.34747303,0.00021678,2]
[400514191,1767688297537,-4950.34,0.0002192,2]
[400514192,1767688297561,-4950.34,0.0002192,2]
[400514193,1767688297587,-4950.34,0.0002192,2]
[400514194,1767688297614,-4950.34,0.0002192,2]
[400514195,1767688297639,-4950.34,0.0002192,2]
[400514196,1767688297662,-163.53,0.00022,2]
[400514197,1767688297744,151.0,0.00016788,2]
[400514198,1767688297780,151.0,0.00016788,2]
[400514199,1767688310820,151.0,0.00019239,2]
[400514200,1767688311217,151.0,0.00019239,2]
[400514201,1767688317783,229.53168465,0.00019082,2]
[400514202,1767688327909,151.0,0.00019253,2]
[400514203,1767688328273,151.0,0.00019235,2]
[400514204,1767688340162,53245.56956562,0.00032876,120]
[400514205,1767688340872,151.0,0.00017989,2]
[400514206,1767688341487,151.0,0.00017989,2]
[400514207,1767688342124,151.0,0.00017989,2]
[400514208,1767688342801,151.0,0.00017989,2]
[400514209,1767688343436,151.0,0.00017989,2]
[400514210,1767688344253,151.0,0.00017989,2]
[400514211,1767688344807,151.0,0.00019235,2]
[400514212,1767688344839,151.0,0.00019235,2]
[400514213,1767688344892,151.0,0.00017989,2]
[400514214,1767688345566,151.0,0.00017989,2]
[400514215,1767688346233,151.0,0.00017989,2]
[400514216,1767688346875,151.0,0.00017989,2]
[400514217,1767688347513,151.0,0.00017989,2]
[400514218,1767688348190,151.0,0.00017989,2]
[400514219,1767688348819,151.0,0.00017989,2]
[400514220,1767688349457,151.0,0.00017989,2]
[400514221,1767688350095,151.0,0.00017989,2]
[400514222,1767688350783,151.0,0.00017989,2]
[400514223,1767688351602,151.0,0.00017989,2]
[400514224,1767688352253,151.0,0.00017989,2]
[400514225,1767688353411,151.0,0.00017989,2]
[400514226,1767688354049,151.0,0.00017989,2]
[400514227,1767688361282,151.0,0.0001925,2]
[400514228,1767688361314,151.0,0.0001925,2]
[400514229,1767688370638,26788.05323944,0.000159,2]
[400514237,1767688696829,175.32934727,0.00032876,120]
[400514242,1767688920762,948.91,9.763e-05,2]
[400514243,1767688921159,948.91,0.00010277,2]
[400514244,1767688921556,948.91,0.00010791,2]
[400514245,1767688921758,948.91,0.00011305,2]
[400514246,1767688921984,948.91,0.00011819,2]
[400514247,1767688922206,948.91,0.00012332,2]
[400514248,1767688922419,948.91,0.00012846,2]
[400514249,1767688922625,948.91,0.0001336,2]
[400514250,1767688922825,948.91,0.00013874,2]
[400514251,1767688923031,948.91,0.00014388,2]
[400514252,1767688931973,-905.9847828,0.00014902,2]
[400514254,1767689200947,500.0,0.00032876,120]
[400514255,1767689201192,500.0,0.00032876,120]
[400514256,1767689201439,500.0,0.00032876,120]
[400514257,1767689201949,500.0,0.00032876,120]
[400514258,1767689202036,500.0,0.00032876,120]
[400514259,1767689202214,500.0,0.00032876,120]
[400514260,1767689202477,500.0,0.00032876,120]
[400514261,1767689202791,500.0,0.00032876,120]
[400514262,1767689203038,500.0,0.00032876,120]
[400514263,1767689203301,500.0,0.00032876,120]
[400514264,1767689253148,-42.9252172,0.00014902,2]
[400514265,1767689253174,-948.91,0.00015416,2]
[400514266,1767689253199,-1200.0,0.00015829,2]
[400514267,1767689253223,-300.0,0.00015829,2]
[400514268,1767689253246,-300.0,0.00015829,2]
[400514269,1767689253274,-450.95243136,0.0001583,2]
[400514286,1767689431810,-82.00766533,0.00015829,2]
[400514334,1767689433586,-217.99233467,0.00015829,2]
[400514335,1767689433596,-282.0,0.00015829,2]
[400514336,1767689433606,-224.9033985,0.0001583,2]
[400514337,1767689433615,-90.92827031,0.0001583,2]
[400514338,1767689433628,-166.43075852,0.0001583,2]
[400514339,1767689433637,-218.35322116,0.00015889,2]
[400514340,1767689433648,-81.64677884,0.00015889,2]
[400514341,1767689433658,-1200.0,0.00015889,2]
[400514342,1767689433668,-467.44149989,0.0001589,2]
[400514343,1767689433679,-1815.05849312,0.0001589,2]
[400514344,1767689433690,-999.0,0.0001589,2]
[400514345,1767689433702,-462.1300956,0.0001589,2]
[400514346,1767689433714,-1075.43,0.0001589,2]
[400514347,1767689433724,-594.61795665,0.0001589,2]
[400514348,1767689433736,-271.414428,0.0001589,2]
[400514349,1767689433748,-869.56,0.0001589,2]
[400514351,1767689437846,-1046.42200763,0.0001589,2]
[400514352,1767689437857,-593.52195671,0.0001589,2]
[400514353,1767689437870,-582.61010442,0.0001589,2]
[400514354,1767689437900,-3023.36358892,0.0001589,2]
[400514355,1767689437911,-1792.19862916,0.0001589,2]
[400514356,1767689437923,-4057.00775652,0.0001589,2]
[400514357,1767689438024,-360.30973868,0.0001589,2]
[400514358,1767689438036,-2774.8928558,0.0001589,2]
[400514359,1767689438047,-11761.97075891,0.0001589,2]
[400514360,1767689438058,-459.62062045,0.00015899,2]
[400514361,1767689438067,-174.17249711,0.00015899,2]
[400514362,1767689438077,-500.0,0.00015899,2]
[400514363,1767689438086,-500.0,0.00015899,2]
[400514364,1767689438096,-297.39921265,0.00015899,2]
[400514365,1767689438105,-633.69579619,0.00015899,2]
[400514366,1767689438114,-500.0,0.00015899,2]
[400514368,1767689438124,-319.97692662,0.00015899,2]
[400514370,1767689438133,-156.7913132,0.00015899,2]
[400514372,1767689438142,-500.0,0.00015899,2]
[400514374,1767689438151,-450.02728752,0.00015899,2]
[400514376,1767689438160,-281.87815722,0.00015899,2]
[400514378,1767689438171,-218.12184278,0.00015899,2]
[400514380,1767689438181,-500.0,0.00015899,2]
[400514382,1767689438190,-574.95481789,0.00015899,2]
[400514383,1767689438199,-500.0,0.00015899,2]
[400514385,1767689438209,-500.0,0.00015899,2]
[400514387,1767689438218,-948.91,0.0001593,2]
[400514389,1767689438227,-151.0,0.0001627,2]
[400514391,1767689438237,-500.0,0.00016438,2]
[400514393,1767689438247,-500.0,0.00016438,2]
[400514395,1767689438256,-500.0,0.00016438,2]
[400514397,1767689438266,-500.0,0.00016438,2]
[400514399,1767689438275,-500.0,0.00016438,2]
[400514401,1767689438284,-500.0,0.00016438,2]
[400514403,1767689438294,-500.0,0.00016438,2]
[400514405,1767689438304,-500.0,0.00016438,2]
[400514407,1767689438313,-500.0,0.00016438,2]
[400514409,1767689438323,-500.0,0.00016438,2]
[400514411,1767689438332,-500.0,0.00016438,2]
[400514413,1767689438342,-500.0,0.00016438,2]
[400514415,1767689438351,-500.0,0.00016438,2]
[400514417,1767689438360,-355.83840356,0.00016438,2]
[400514420,1767689438372,-144.16159644,0.00016438,2]
[400514422,1767689438382,-303.82861216,0.00016438,2]
[400514578,1767689439849,-151.0,0.00016258,2]
[400514580,1767689439859,-196.17138784,0.00016438,2]
[400514582,1767689439868,-500.0,0.00016438,2]
[400514584,1767689439877,-500.0,0.00016438,2]
[400514586,1767689439886,-500.0,0.00016438,2]
[400514588,1767689439894,-500.0,0.00016438,2]
[400514590,1767689439904,-500.0,0.00016438,2]
[400514592,1767689439913,-500.0,0.00016438,2]
[400514594,1767689439921,-500.0,0.00016438,2]
[400514596,1767689439930,-500.0,0.00016438,2]
[400514598,1767689439939,-500.0,0.00016438,2]
[400514600,1767689439949,-500.0,0.00016438,2]
[400514602,1767689439958,-500.0,0.00016438,2]
[400514604,1767689439967,-500.0,0.00016438,2]
[400514606,1767689439976,-500.0,0.00016438,2]
[400514608,1767689439984,-500.0,0.00016438,2]
[400514610,1767689439993,-500.0,0.00016438,2]
[400514612,1767689440002,-247.34739077,0.00016438,2]
[400514614,1767689440011,-500.0,0.00016438,2]
[400514616,1767689440020,-500.0,0.00016438,2]
[400514618,1767689440029,-500.0,0.00016438,2]
[400514620,1767689440038,-473.13115107,0.00016438,2]
[400514622,1767689440049,-26.86884893,0.00016438,2]
[400514624,1767689440059,-353.08326398,0.00016438,2]
[400514626,1767689440069,-146.91673602,0.00016438,2]
[400514628,1767689440078,-500.0,0.00016438,2]
[400514630,1767689440087,-500.0,0.00016438,2]
[400514632,1767689440096,-499.99999999,0.00016438,2]
[400514634,1767689440105,-500.0,0.00016438,2]
[400514636,1767689440115,-328.46,0.00016438,2]
[400514638,1767689440124,-948.91,0.00016443,2]
[400514640,1767689440134,-303.07326399,0.00016712,2]
[400514642,1767689440145,-25.38673601,0.00016712,2]
[400514644,1767689440154,-1838.71499271,0.00016922,2]
[400514647,1767689440168,-539.89179324,0.00016922,2]
[400514649,1767689440188,-7621.38321405,0.00016922,2]
[400514651,1767689440197,-9999.99,0.00016922,2]
[400514653,1767689440206,-150.99,0.00016922,2]
[400514655,1767689440215,-5354.27,0.00016922,2]
[400514658,1767689440233,-5438.98,0.00016922,2]
[400514660,1767689440242,-948.91,0.00016957,2]
[400514662,1767689440253,-328.47575576,0.00016986,2]
[400514664,1767689440262,-250.0,0.00017,2]
[400514666,1767689440271,-420.0,0.00017309,2]
[400514668,1767689440281,-420.0,0.00017374,2]
[400514669,1767689440290,-489.75932709,0.00017412,2]
[400514670,1767689440300,-1680.0,0.00017461,2]
[400514671,1767689440309,-948.91,0.00017471,2]
[400514672,1767689440319,-500.0,0.00017899,2]
[400514673,1767689440330,-948.91,0.00017985,2]
[400514674,1767689440339,-210.17279963,0.00017995,2]
[400514675,1767689440350,-537.63319283,0.00017999,2]
[400514676,1767689440359,-150.0,0.00018,7]
[400514677,1767689440368,-230.1,0.00018109,2]
[400514678,1767689440377,-948.91,0.00018499,2]
[400514679,1767689440386,-1327.19,0.00018533,2]
[400514680,1767689440396,-587.0,0.00018928,2]
[400514682,1767689440406,-587.0,0.00018998,2]
[400514684,1767689440415,-948.91,0.00019013,2]
[400514686,1767689440426,-1208.07,0.00019061,2]
[400514688,1767689440435,-1237.0,0.00019189,2]
[400514690,1767689440444,-166.66,0.00019294,2]
[400514692,1767689440453,-230.1,0.00019461,2]
[400514694,1767689440463,-200.0,0.00019471,2]
[400514696,1767689440471,-948.91,0.00019527,2]
[400514698,1767689440481,-200.0,0.00019562,2]
[400514700,1767689440491,-257.35902881,0.0001959,2]
[400514702,1767689440500,-166.66,0.00019931,2]